[Event "Titled Tuesday Blitz May 23 Early 2023"]
[White "Manon-og, Ramon Jr."]
[Black "Goncalves, Davi Sulzbacher"]
[WhiteFideId "5200776"]
[BlackFideId "2154510"]
[WhiteElo "2338"]
[BlackElo "2182"]
[Result "1-0"]
[Round "11"]
[TimeControl "180+2"]
[Date "2023.05.23"]
[WhiteClock "0:00:15"]
[BlackClock "0:00:00"]

1. e4 {[%clk 0:03:00]}  c6 {[%clk 0:02:59]} 2. d4 {[%clk 0:03:00]}  d5 {[%clk 0:03:00]} 3. e5 {[%clk 0:03:00]}  Bf5 {[%clk 0:02:58]} 4. Nd2 {[%clk 0:03:00]}  e6 {[%clk 0:02:57]} 5. Nb3 {[%clk 0:03:01]}  Ne7 {[%clk 0:02:50]} 6. Nf3 {[%clk 0:03:01]}  h6 {[%clk 0:02:46]} 7. Be2 {[%clk 0:03:01]}  Nd7 {[%clk 0:02:46]} 8. O-O {[%clk 0:03:01]}  g5 {[%clk 0:02:43]} 9. c4 {[%clk 0:03:00]}  Bg7 {[%clk 0:02:39]} 10. cxd5 {[%clk 0:02:56]}  cxd5 {[%clk 0:02:36]} 11. Bd3 {[%clk 0:02:56]}  Rc8 {[%clk 0:02:34]} 12. Qe2 {[%clk 0:02:54]}  Qc7 {[%clk 0:02:29]} 13. Bd2 {[%clk 0:02:51]}  Bxd3 {[%clk 0:02:27]} 14. Qxd3 {[%clk 0:02:52]}  Qc4 {[%clk 0:02:07]} 15. Qe3 {[%clk 0:02:16]}  Nf5 {[%clk 0:02:06]} 16. Qe1 {[%clk 0:02:17]}  O-O {[%clk 0:02:07]} 17. h3 {[%clk 0:02:01]}  b6 {[%clk 0:01:41]} 18. Bc3 {[%clk 0:01:57]}  a5 {[%clk 0:01:32]} 19. h4 {[%clk 0:01:53]}  g4 {[%clk 0:01:27]} 20. Nh2 {[%clk 0:01:53]}  h5 {[%clk 0:01:14]} 21. f3 {[%clk 0:01:49]}  g3 {[%clk 0:01:13]} 22. Ng4 {[%clk 0:01:46]}  a4 {[%clk 0:01:09]} 23. Nd2 {[%clk 0:01:45]}  Qd3 {[%clk 0:01:06]} 24. Nf6+ {[%clk 0:01:37]}  Nxf6 {[%clk 0:01:06]} 25. exf6 {[%clk 0:01:37]}  Bxf6 {[%clk 0:01:07]} 26. f4 {[%clk 0:01:18]}  Bxd4+ {[%clk 0:00:54]} 27. Bxd4 {[%clk 0:01:18]}  Qxd4+ {[%clk 0:00:54]} 28. Kh1 {[%clk 0:01:18]}  Rc2 {[%clk 0:00:53]} 29. Rd1 {[%clk 0:01:17]}  Qe3 {[%clk 0:00:32]} 30. Nf3 {[%clk 0:01:03]}  Qxf4 {[%clk 0:00:32]} 31. Rd2 {[%clk 0:00:40]}  Rxd2 {[%clk 0:00:24]} 32. Qxd2 {[%clk 0:00:40]}  Qxd2 {[%clk 0:00:22]} 33. Nxd2 {[%clk 0:00:41]}  Rc8 {[%clk 0:00:23]} 34. b3 {[%clk 0:00:33]}  Rc2 {[%clk 0:00:18]} 35. Nf3 {[%clk 0:00:33]}  a3 {[%clk 0:00:17]} 36. Ra1 {[%clk 0:00:31]}  Ne3 {[%clk 0:00:14]} 37. Nd4 {[%clk 0:00:29]}  Rxg2 {[%clk 0:00:14]} 38. Nb5 {[%clk 0:00:24]}  Rh2+ {[%clk 0:00:13]} 39. Kg1 {[%clk 0:00:24]}  Rxh4 {[%clk 0:00:13]} 40. Nxa3 {[%clk 0:00:24]}  g2 {[%clk 0:00:12]} 41. Kf2 {[%clk 0:00:23]}  Rh1 {[%clk 0:00:13]} 42. Rg1 {[%clk 0:00:21]}  Rxg1 {[%clk 0:00:13]} 43. Kxg1 {[%clk 0:00:22]}  h4 {[%clk 0:00:13]} 44. Nb1 {[%clk 0:00:20]}  h3 {[%clk 0:00:12]} 45. Nd2 {[%clk 0:00:21]}  d4 {[%clk 0:00:09]} 46. a4 {[%clk 0:00:20]}  Nd5 {[%clk 0:00:06]} 47. Kh2 {[%clk 0:00:20]}  Nf4 {[%clk 0:00:04]} 48. b4 {[%clk 0:00:18]}  Nd5 {[%clk 0:00:01]} 49. a5 {[%clk 0:00:17]}  bxa5 {[%clk 0:00:01]} 50. bxa5 {[%clk 0:00:17]}  Kf8 {[%clk 0:00:02]} 51. a6 {[%clk 0:00:17]}  Nb6 {[%clk 0:00:00]} 52. a7 {[%clk 0:00:15]} 1-0


[Site "https://www.chess.com"]

[Event "Titled Tuesday Blitz May 23 Early 2023"]
[White "Goldin, Roman"]
[Black "merinasian"]
[WhiteFideId "2803860"]
[WhiteElo "2312"]
[BlackElo "2482"]
[Result "1-0"]
[Round "11"]
[TimeControl "180+2"]
[Date "2023.05.23"]
[WhiteClock "0:01:51"]
[BlackClock "0:01:53"]

1. d4 {[%clk 0:02:58]}  Nf6 {[%clk 0:02:56]} 2. Nf3 {[%clk 0:02:56]}  e6 {[%clk 0:02:56]} 3. g3 {[%clk 0:02:55]}  b6 {[%clk 0:02:56]} 4. Bg2 {[%clk 0:02:56]}  Bb7 {[%clk 0:02:56]} 5. O-O {[%clk 0:02:56]}  Be7 {[%clk 0:02:55]} 6. c4 {[%clk 0:02:57]}  O-O {[%clk 0:02:56]} 7. Nc3 {[%clk 0:02:57]}  Ne4 {[%clk 0:02:55]} 8. Qc2 {[%clk 0:02:56]}  Nxc3 {[%clk 0:02:54]} 9. bxc3 {[%clk 0:02:56]}  f5 {[%clk 0:02:53]} 10. d5 {[%clk 0:02:45]}  Bf6 {[%clk 0:02:50]} 11. Nd4 {[%clk 0:02:36]}  c5 {[%clk 0:02:32]} 12. Nb5 {[%clk 0:02:16]}  exd5 {[%clk 0:02:12]} 13. Nd6 {[%clk 0:02:09]}  Ba6 {[%clk 0:01:57]} 14. Bxd5+ {[%clk 0:02:05]}  Kh8 {[%clk 0:01:57]} 15. Bxa8 {[%clk 0:02:00]}  Nc6 {[%clk 0:01:57]} 16. Bxc6 {[%clk 0:01:58]}  dxc6 {[%clk 0:01:57]} 17. Bf4 {[%clk 0:01:55]}  Qe7 {[%clk 0:01:53]} 18. Nxf5 {[%clk 0:01:51]} 1-0


[Site "https://www.chess.com"]

[Event "Titled Tuesday Blitz May 23 Early 2023"]
[White "Rosh Jain"]
[Black "Omariev, Maksim"]
[WhiteFideId "25789465"]
[BlackFideId "4193423"]
[WhiteElo "2233"]
[BlackElo "2478"]
[Result "1-0"]
[Round "11"]
[TimeControl "180+2"]
[Date "2023.05.23"]
[WhiteClock "0:00:19"]
[BlackClock "0:00:08"]

1. e4 {[%clk 0:02:56]}  c5 {[%clk 0:02:59]} 2. Nc3 {[%clk 0:02:56]}  d6 {[%clk 0:02:59]} 3. f4 {[%clk 0:02:54]}  Nc6 {[%clk 0:02:59]} 4. Nf3 {[%clk 0:02:52]}  g6 {[%clk 0:02:58]} 5. a4 {[%clk 0:02:51]}  Bg7 {[%clk 0:02:58]} 6. Bb5 {[%clk 0:02:48]}  Bd7 {[%clk 0:02:57]} 7. O-O {[%clk 0:02:41]}  e6 {[%clk 0:02:57]} 8. d3 {[%clk 0:02:28]}  Nge7 {[%clk 0:02:56]} 9. Be3 {[%clk 0:02:26]}  Nd4 {[%clk 0:02:44]} 10. Bxd7+ {[%clk 0:02:24]}  Qxd7 {[%clk 0:02:45]} 11. Ra2 {[%clk 0:02:17]}  O-O {[%clk 0:02:28]} 12. Ne2 {[%clk 0:02:16]}  Nxf3+ {[%clk 0:02:13]} 13. Rxf3 {[%clk 0:02:16]}  Rac8 {[%clk 0:02:13]} 14. c3 {[%clk 0:02:12]}  d5 {[%clk 0:02:10]} 15. e5 {[%clk 0:02:12]}  Nf5 {[%clk 0:02:09]} 16. Bf2 {[%clk 0:02:05]}  Rfd8 {[%clk 0:01:51]} 17. g4 {[%clk 0:02:03]}  Nh6 {[%clk 0:01:51]} 18. Rg3 {[%clk 0:01:58]}  Rc6 {[%clk 0:01:45]} 19. d4 {[%clk 0:01:55]}  c4 {[%clk 0:01:35]} 20. Be3 {[%clk 0:01:52]}  Kf8 {[%clk 0:01:19]} 21. Qd2 {[%clk 0:01:47]}  Ng8 {[%clk 0:01:10]} 22. Rh3 {[%clk 0:01:47]}  h6 {[%clk 0:01:07]} 23. Ra1 {[%clk 0:01:38]}  Re8 {[%clk 0:01:02]} 24. Rf1 {[%clk 0:01:38]}  Ke7 {[%clk 0:01:02]} 25. f5 {[%clk 0:01:24]}  exf5 {[%clk 0:01:02]} 26. gxf5 {[%clk 0:01:25]}  Kd8 {[%clk 0:00:56]} 27. f6 {[%clk 0:01:25]}  Bf8 {[%clk 0:00:55]} 28. Rg3 {[%clk 0:01:22]}  Ra6 {[%clk 0:00:40]} 29. Nf4 {[%clk 0:01:20]}  g5 {[%clk 0:00:25]} 30. e6 {[%clk 0:01:01]}  Raxe6 {[%clk 0:00:05]} 31. Nxe6+ {[%clk 0:01:01]}  Rxe6 {[%clk 0:00:06]} 32. Rgf3 {[%clk 0:00:58]}  Bd6 {[%clk 0:00:05]} 33. Qg2 {[%clk 0:00:53]}  Qxa4 {[%clk 0:00:04]} 34. Re1 {[%clk 0:00:49]}  Qd7 {[%clk 0:00:02]} 35. Bd2 {[%clk 0:00:49]}  Nxf6 {[%clk 0:00:02]} 36. Rxe6 {[%clk 0:00:48]}  Qxe6 {[%clk 0:00:03]} 37. Re3 {[%clk 0:00:45]}  Ne4 {[%clk 0:00:02]} 38. Be1 {[%clk 0:00:44]}  f5 {[%clk 0:00:03]} 39. Re2 {[%clk 0:00:41]}  f4 {[%clk 0:00:03]} 40. h3 {[%clk 0:00:40]}  Qf5 {[%clk 0:00:03]} 41. Qf3 {[%clk 0:00:37]}  Qg6 {[%clk 0:00:03]} 42. Rg2 {[%clk 0:00:32]}  h5 {[%clk 0:00:03]} 43. Bh4 {[%clk 0:00:31]}  Be7 {[%clk 0:00:02]} 44. Qxf4 {[%clk 0:00:27]}  gxf4 {[%clk 0:00:02]} 45. Bxe7+ {[%clk 0:00:27]}  Kxe7 {[%clk 0:00:03]} 46. Rxg6 {[%clk 0:00:27]}  a6 {[%clk 0:00:02]} 47. Rg7+ {[%clk 0:00:26]}  Kd6 {[%clk 0:00:01]} 48. Rxb7 {[%clk 0:00:26]}  f3 {[%clk 0:00:01]} 49. Rb6+ {[%clk 0:00:25]}  Ke7 {[%clk 0:00:02]} 50. Rxa6 {[%clk 0:00:26]}  Nd2 {[%clk 0:00:01]} 51. Kf2 {[%clk 0:00:25]}  Ne4+ {[%clk 0:00:01]} 52. Kxf3 {[%clk 0:00:25]}  h4 {[%clk 0:00:01]} 53. Kg4 {[%clk 0:00:25]}  Nf2+ {[%clk 0:00:01]} 54. Kxh4 {[%clk 0:00:25]}  Nd3 {[%clk 0:00:02]} 55. Rb6 {[%clk 0:00:24]}  Kd7 {[%clk 0:00:02]} 56. Kg5 {[%clk 0:00:24]}  Kc7 {[%clk 0:00:03]} 57. Rb5 {[%clk 0:00:25]}  Kc6 {[%clk 0:00:03]} 58. Rb8 {[%clk 0:00:24]}  Kc7 {[%clk 0:00:04]} 59. Rf8 {[%clk 0:00:23]}  Nxb2 {[%clk 0:00:03]} 60. h4 {[%clk 0:00:24]}  Nd1 {[%clk 0:00:04]} 61. h5 {[%clk 0:00:24]}  Nxc3 {[%clk 0:00:04]} 62. h6 {[%clk 0:00:25]}  Ne4+ {[%clk 0:00:05]} 63. Kg6 {[%clk 0:00:26]}  Ng5 {[%clk 0:00:02]} 64. Kxg5 {[%clk 0:00:25]}  c3 {[%clk 0:00:02]} 65. h7 {[%clk 0:00:24]}  c2 {[%clk 0:00:03]} 66. Rc8+ {[%clk 0:00:24]}  Kxc8 {[%clk 0:00:01]} 67. h8=Q+ {[%clk 0:00:24]}  Kc7 {[%clk 0:00:02]} 68. Qh1 {[%clk 0:00:23]}  Kc6 {[%clk 0:00:03]} 69. Qc1 {[%clk 0:00:23]}  Kb6 {[%clk 0:00:03]} 70. Qxc2 {[%clk 0:00:22]}  Ka6 {[%clk 0:00:04]} 71. Qc5 {[%clk 0:00:22]}  Kb7 {[%clk 0:00:04]} 72. Qxd5+ {[%clk 0:00:22]}  Ka7 {[%clk 0:00:05]} 73. Qc5+ {[%clk 0:00:22]}  Kb8 {[%clk 0:00:06]} 74. d5 {[%clk 0:00:22]}  Kb7 {[%clk 0:00:06]} 75. d6 {[%clk 0:00:22]}  Ka6 {[%clk 0:00:06]} 76. d7 {[%clk 0:00:21]}  Kb7 {[%clk 0:00:07]} 77. d8=Q {[%clk 0:00:19]}  Ka6 {[%clk 0:00:08]} 78. Qa8# {[%clk 0:00:19]} 1-0


[Site "https://www.chess.com"]

[Event "Titled Tuesday Blitz May 23 Early 2023"]
[White "ChawitAp"]
[Black "Bruedigam, Martin"]
[BlackFideId "24608033"]
[WhiteElo "2298"]
[BlackElo "2331"]
[Result "1-0"]
[Round "11"]
[TimeControl "180+2"]
[Date "2023.05.23"]
[WhiteClock "0:00:10"]
[BlackClock "0:00:02"]

1. d4 {[%clk 0:03:00]}  d5 {[%clk 0:02:57]} 2. Nf3 {[%clk 0:03:01]}  Nf6 {[%clk 0:02:57]} 3. c3 {[%clk 0:03:01]}  c6 {[%clk 0:02:54]} 4. Bf4 {[%clk 0:03:01]}  Bf5 {[%clk 0:02:54]} 5. Nbd2 {[%clk 0:03:01]}  e6 {[%clk 0:02:53]} 6. Qb3 {[%clk 0:03:01]}  Qc8 {[%clk 0:02:53]} 7. e3 {[%clk 0:03:02]}  Be7 {[%clk 0:02:51]} 8. c4 {[%clk 0:03:02]}  h6 {[%clk 0:02:51]} 9. Rc1 {[%clk 0:03:01]}  O-O {[%clk 0:02:51]} 10. Be2 {[%clk 0:03:00]}  Nbd7 {[%clk 0:02:50]} 11. O-O {[%clk 0:03:00]}  Re8 {[%clk 0:02:50]} 12. Ne5 {[%clk 0:03:00]}  Nxe5 {[%clk 0:02:47]} 13. Bxe5 {[%clk 0:02:58]}  Nd7 {[%clk 0:02:47]} 14. Bg3 {[%clk 0:02:55]}  Bf8 {[%clk 0:02:47]} 15. Bf3 {[%clk 0:02:54]}  Nb6 {[%clk 0:02:40]} 16. e4 {[%clk 0:02:47]}  dxe4 {[%clk 0:02:35]} 17. Nxe4 {[%clk 0:02:47]}  Bxe4 {[%clk 0:02:31]} 18. Bxe4 {[%clk 0:02:47]}  Qd7 {[%clk 0:02:31]} 19. Rfd1 {[%clk 0:02:46]}  Rad8 {[%clk 0:02:29]} 20. Bb1 {[%clk 0:02:43]}  Nc8 {[%clk 0:02:21]} 21. d5 {[%clk 0:02:24]}  exd5 {[%clk 0:02:13]} 22. cxd5 {[%clk 0:02:25]}  cxd5 {[%clk 0:01:59]} 23. Bc7 {[%clk 0:02:23]}  Ne7 {[%clk 0:01:38]} 24. Bxd8 {[%clk 0:02:17]}  Rxd8 {[%clk 0:01:38]} 25. Qc2 {[%clk 0:02:13]}  g6 {[%clk 0:01:37]} 26. Qc7 {[%clk 0:02:11]}  Bg7 {[%clk 0:01:37]} 27. b3 {[%clk 0:02:01]}  h5 {[%clk 0:01:32]} 28. h3 {[%clk 0:01:53]}  Bf6 {[%clk 0:01:30]} 29. Qf4 {[%clk 0:01:41]}  Kg7 {[%clk 0:01:29]} 30. Rc7 {[%clk 0:01:37]}  Qb5 {[%clk 0:01:29]} 31. Re1 {[%clk 0:01:22]}  Rd7 {[%clk 0:00:58]} 32. Rxd7 {[%clk 0:01:15]}  Qxd7 {[%clk 0:00:58]} 33. Bd3 {[%clk 0:01:06]}  a6 {[%clk 0:00:54]} 34. Re3 {[%clk 0:01:02]}  Qc6 {[%clk 0:00:50]} 35. Rf3 {[%clk 0:01:00]}  Ng8 {[%clk 0:00:46]} 36. g4 {[%clk 0:00:59]}  hxg4 {[%clk 0:00:43]} 37. hxg4 {[%clk 0:00:58]}  Qe6 {[%clk 0:00:37]} 38. g5 {[%clk 0:00:49]}  Be5 {[%clk 0:00:33]} 39. Qh4 {[%clk 0:00:41]}  Qc6 {[%clk 0:00:18]} 40. Rh3 {[%clk 0:00:36]}  Qc1+ {[%clk 0:00:15]} 41. Kg2 {[%clk 0:00:36]}  Bf4 {[%clk 0:00:13]} 42. Qh7+ {[%clk 0:00:23]}  Kf8 {[%clk 0:00:13]} 43. Rf3 {[%clk 0:00:19]}  Ne7 {[%clk 0:00:13]} 44. Qh8+ {[%clk 0:00:16]}  Ng8 {[%clk 0:00:13]} 45. Bxg6 {[%clk 0:00:16]}  fxg6 {[%clk 0:00:12]} 46. Qe5 {[%clk 0:00:14]}  Ne7 {[%clk 0:00:10]} 47. Rxf4+ {[%clk 0:00:14]}  Ke8 {[%clk 0:00:10]} 48. Rf6 {[%clk 0:00:13]}  Qd1 {[%clk 0:00:08]} 49. Re6 {[%clk 0:00:13]}  Qg4+ {[%clk 0:00:08]} 50. Kf1 {[%clk 0:00:13]}  Qd1+ {[%clk 0:00:09]} 51. Qe1 {[%clk 0:00:13]}  Qxe1+ {[%clk 0:00:09]} 52. Kxe1 {[%clk 0:00:13]}  Kf7 {[%clk 0:00:08]} 53. Rf6+ {[%clk 0:00:13]}  Ke8 {[%clk 0:00:08]} 54. Rb6 {[%clk 0:00:14]}  Nc6 {[%clk 0:00:07]} 55. Rxb7 {[%clk 0:00:14]}  Ne5 {[%clk 0:00:08]} 56. Rg7 {[%clk 0:00:13]}  Kd8 {[%clk 0:00:07]} 57. f4 {[%clk 0:00:13]}  Nd3+ {[%clk 0:00:07]} 58. Kd2 {[%clk 0:00:12]}  Nxf4 {[%clk 0:00:08]} 59. Ra7 {[%clk 0:00:12]}  Ne6 {[%clk 0:00:07]} 60. Rxa6 {[%clk 0:00:12]}  Nxg5 {[%clk 0:00:07]} 61. Rxg6 {[%clk 0:00:12]}  Ne4+ {[%clk 0:00:08]} 62. Kd3 {[%clk 0:00:12]}  Kc7 {[%clk 0:00:09]} 63. Rg7+ {[%clk 0:00:11]}  Kc6 {[%clk 0:00:09]} 64. a4 {[%clk 0:00:11]}  Kc5 {[%clk 0:00:08]} 65. Rc7+ {[%clk 0:00:11]}  Kb4 {[%clk 0:00:09]} 66. Rb7+ {[%clk 0:00:10]}  Kc5 {[%clk 0:00:08]} 67. a5 {[%clk 0:00:10]}  Nd6 {[%clk 0:00:08]} 68. Rb8 {[%clk 0:00:10]}  Kc6 {[%clk 0:00:07]} 69. a6 {[%clk 0:00:09]}  Nb5 {[%clk 0:00:08]} 70. Rxb5 {[%clk 0:00:09]}  Kxb5 {[%clk 0:00:02]} 71. a7 {[%clk 0:00:10]} 1-0


[Site "https://www.chess.com"]

[Event "Titled Tuesday Blitz May 23 Early 2023"]
[White "Ziatdinov, Raset"]
[Black "Arat, Ufuk Sezen"]
[WhiteFideId "2015323"]
[BlackFideId "6309089"]
[WhiteElo "2220"]
[BlackElo "2289"]
[Result "0-1"]
[Round "11"]
[TimeControl "180+2"]
[Date "2023.05.23"]
[WhiteClock "0:00:18"]
[BlackClock "0:00:54"]

1. e4 {[%clk 0:03:00]}  c5 {[%clk 0:02:58]} 2. Nf3 {[%clk 0:03:01]}  e6 {[%clk 0:02:59]} 3. d4 {[%clk 0:03:01]}  cxd4 {[%clk 0:02:59]} 4. Nxd4 {[%clk 0:03:02]}  Nc6 {[%clk 0:03:00]} 5. Nc3 {[%clk 0:03:02]}  Qc7 {[%clk 0:03:00]} 6. Bd3 {[%clk 0:03:02]}  Nxd4 {[%clk 0:02:59]} 7. Be3 {[%clk 0:02:50]}  Nc6 {[%clk 0:02:54]} 8. O-O {[%clk 0:02:48]}  a6 {[%clk 0:02:54]} 9. f4 {[%clk 0:02:48]}  b5 {[%clk 0:02:54]} 10. e5 {[%clk 0:02:44]}  Bb7 {[%clk 0:02:52]} 11. Ne4 {[%clk 0:02:44]}  Nh6 {[%clk 0:02:50]} 12. g4 {[%clk 0:02:43]}  Nb4 {[%clk 0:02:43]} 13. Qe2 {[%clk 0:02:26]}  Nd5 {[%clk 0:02:42]} 14. Bd2 {[%clk 0:02:26]}  Bc5+ {[%clk 0:02:41]} 15. Kg2 {[%clk 0:02:21]}  f5 {[%clk 0:02:41]} 16. exf6 {[%clk 0:02:14]}  Nxf6 {[%clk 0:02:39]} 17. g5 {[%clk 0:01:56]}  Nxe4 {[%clk 0:02:09]} 18. Bxe4 {[%clk 0:01:54]}  Nf5 {[%clk 0:02:09]} 19. Rae1 {[%clk 0:01:47]}  Nd6 {[%clk 0:02:05]} 20. Bxb7 {[%clk 0:01:32]}  Qxb7+ {[%clk 0:02:04]} 21. Kh3 {[%clk 0:01:32]}  O-O {[%clk 0:02:03]} 22. Bc3 {[%clk 0:01:32]}  Nf5 {[%clk 0:01:58]} 23. Qe5 {[%clk 0:01:10]}  Bd6 {[%clk 0:01:52]} 24. Qe2 {[%clk 0:01:03]}  Rae8 {[%clk 0:01:51]} 25. Qh5 {[%clk 0:00:59]}  Ne7 {[%clk 0:01:42]} 26. Rd1 {[%clk 0:00:43]}  Nf5 {[%clk 0:01:09]} 27. Rde1 {[%clk 0:00:40]}  Qd5 {[%clk 0:01:04]} 28. Qg4 {[%clk 0:00:35]}  Ne7 {[%clk 0:00:59]} 29. b3 {[%clk 0:00:29]}  Qf5 {[%clk 0:00:58]} 30. Rd1 {[%clk 0:00:23]}  Qxg4+ {[%clk 0:00:54]} 31. Kxg4 {[%clk 0:00:24]}  Nd5 {[%clk 0:00:55]} 32. Bb2 {[%clk 0:00:18]}  Ne3+ {[%clk 0:00:54]} 0-1


[Site "https://www.chess.com"]

[Event "Titled Tuesday Blitz May 23 Early 2023"]
[White "Janaszak, Dawid"]
[Black "Dwilewicz, Katarzyna"]
[WhiteFideId "1119206"]
[BlackFideId "1148486"]
[WhiteElo "2220"]
[BlackElo "2065"]
[Result "0-1"]
[Round "11"]
[TimeControl "180+2"]
[Date "2023.05.23"]
[WhiteClock "0:00:05"]
[BlackClock "0:00:20"]

1. e4 {[%clk 0:03:00]}  c5 {[%clk 0:02:58]} 2. Nc3 {[%clk 0:03:00]}  e6 {[%clk 0:02:55]} 3. d4 {[%clk 0:02:57]}  cxd4 {[%clk 0:02:55]} 4. Qxd4 {[%clk 0:02:58]}  Nc6 {[%clk 0:02:55]} 5. Qd3 {[%clk 0:02:57]}  Nf6 {[%clk 0:02:53]} 6. Bf4 {[%clk 0:02:56]}  Bb4 {[%clk 0:02:50]} 7. O-O-O {[%clk 0:02:56]}  O-O {[%clk 0:02:50]} 8. e5 {[%clk 0:02:54]}  Bxc3 {[%clk 0:02:45]} 9. Qxc3 {[%clk 0:02:50]}  Nd5 {[%clk 0:02:45]} 10. Qd2 {[%clk 0:02:46]}  Nxf4 {[%clk 0:02:36]} 11. Qxf4 {[%clk 0:02:46]}  Qa5 {[%clk 0:02:36]} 12. Nf3 {[%clk 0:02:39]}  Qxa2 {[%clk 0:02:36]} 13. Bd3 {[%clk 0:02:39]}  Qa1+ {[%clk 0:02:14]} 14. Kd2 {[%clk 0:02:39]}  Qxb2 {[%clk 0:02:07]} 15. Rb1 {[%clk 0:02:38]}  Qa3 {[%clk 0:02:01]} 16. Bxh7+ {[%clk 0:02:19]}  Kxh7 {[%clk 0:01:59]} 17. Qh4+ {[%clk 0:02:19]}  Kg8 {[%clk 0:01:57]} 18. Ng5 {[%clk 0:02:12]}  Rd8 {[%clk 0:01:48]} 19. Qh7+ {[%clk 0:01:52]}  Kf8 {[%clk 0:01:48]} 20. Qh8+ {[%clk 0:01:50]}  Ke7 {[%clk 0:01:48]} 21. Qxg7 {[%clk 0:01:49]}  Qa5+ {[%clk 0:01:47]} 22. Kc1 {[%clk 0:01:42]}  Qxe5 {[%clk 0:01:31]} 23. Qxf7+ {[%clk 0:01:36]}  Kd6 {[%clk 0:01:31]} 24. Rd1+ {[%clk 0:00:29]}  Kc7 {[%clk 0:01:31]} 25. f4 {[%clk 0:00:23]}  Qe3+ {[%clk 0:01:26]} 26. Rd2 {[%clk 0:00:23]}  Kb8 {[%clk 0:01:17]} 27. Rb3 {[%clk 0:00:23]}  Qg1+ {[%clk 0:01:04]} 28. Kb2 {[%clk 0:00:22]}  Rh8 {[%clk 0:00:46]} 29. h3 {[%clk 0:00:20]}  a5 {[%clk 0:00:46]} 30. Qf6 {[%clk 0:00:19]}  Re8 {[%clk 0:00:42]} 31. Qf7 {[%clk 0:00:18]}  Re7 {[%clk 0:00:42]} 32. Qf6 {[%clk 0:00:17]}  a4 {[%clk 0:00:42]} 33. Ra3 {[%clk 0:00:18]}  Qc5 {[%clk 0:00:41]} 34. Rdd3 {[%clk 0:00:17]}  Qb4+ {[%clk 0:00:40]} 35. Ka1 {[%clk 0:00:17]}  Qe1+ {[%clk 0:00:36]} 36. Kb2 {[%clk 0:00:16]}  Ra5 {[%clk 0:00:29]} 37. c4 {[%clk 0:00:14]}  Qb4+ {[%clk 0:00:24]} 38. Ka1 {[%clk 0:00:14]}  Qxc4 {[%clk 0:00:25]} 39. Rac3 {[%clk 0:00:15]}  Qb4 {[%clk 0:00:23]} 40. Rd1 {[%clk 0:00:08]}  Rb5 {[%clk 0:00:22]} 41. Rc2 {[%clk 0:00:06]}  Qa3+ {[%clk 0:00:21]} 42. Ra2 {[%clk 0:00:06]}  Qb3 {[%clk 0:00:21]} 43. Nf3 {[%clk 0:00:05]}  Qxd1# {[%clk 0:00:20]} 0-1


[Site "https://www.chess.com"]

[Event "Titled Tuesday Blitz May 23 Early 2023"]
[White "LeoLV10"]
[Black "Khamdamova, Afruza"]
[BlackFideId "14210444"]
[WhiteElo "2403"]
[BlackElo "2312"]
[Result "0-1"]
[Round "11"]
[TimeControl "180+2"]
[Date "2023.05.23"]
[WhiteClock "0:00:09"]
[BlackClock "0:00:31"]

1. e4 {[%clk 0:02:58]}  c6 {[%clk 0:02:57]} 2. d4 {[%clk 0:02:57]}  d5 {[%clk 0:02:58]} 3. e5 {[%clk 0:02:58]}  Bf5 {[%clk 0:02:57]} 4. g4 {[%clk 0:02:57]}  Bd7 {[%clk 0:02:54]} 5. Be2 {[%clk 0:02:56]}  f6 {[%clk 0:02:54]} 6. f4 {[%clk 0:02:52]}  e6 {[%clk 0:02:49]} 7. h4 {[%clk 0:02:47]}  c5 {[%clk 0:02:47]} 8. c3 {[%clk 0:02:46]}  Nc6 {[%clk 0:02:46]} 9. Nf3 {[%clk 0:02:45]}  cxd4 {[%clk 0:02:45]} 10. cxd4 {[%clk 0:02:44]}  Bb4+ {[%clk 0:02:44]} 11. Nc3 {[%clk 0:02:43]}  Qb6 {[%clk 0:02:43]} 12. a3 {[%clk 0:02:41]}  Be7 {[%clk 0:02:40]} 13. b4 {[%clk 0:02:36]}  Rc8 {[%clk 0:02:32]} 14. Na4 {[%clk 0:02:22]}  Qd8 {[%clk 0:02:26]} 15. Nc5 {[%clk 0:02:13]}  Bxc5 {[%clk 0:02:26]} 16. bxc5 {[%clk 0:02:13]}  Nge7 {[%clk 0:02:11]} 17. Kf2 {[%clk 0:02:08]}  O-O {[%clk 0:02:08]} 18. h5 {[%clk 0:02:01]}  fxe5 {[%clk 0:02:06]} 19. fxe5 {[%clk 0:02:00]}  Qe8 {[%clk 0:01:59]} 20. Be3 {[%clk 0:01:57]}  Na5 {[%clk 0:01:49]} 21. Kg3 {[%clk 0:01:43]}  Bb5 {[%clk 0:01:42]} 22. Rf1 {[%clk 0:01:38]}  Bxe2 {[%clk 0:01:42]} 23. Qxe2 {[%clk 0:01:39]}  Nc4 {[%clk 0:01:38]} 24. Bg5 {[%clk 0:01:38]}  Nc6 {[%clk 0:01:32]} 25. Qd3 {[%clk 0:01:37]}  b6 {[%clk 0:01:23]} 26. cxb6 {[%clk 0:01:31]}  axb6 {[%clk 0:01:22]} 27. Bh4 {[%clk 0:01:27]}  h6 {[%clk 0:01:14]} 28. Ra2 {[%clk 0:01:10]}  Qf7 {[%clk 0:01:05]} 29. Raf2 {[%clk 0:01:09]}  Qf4+ {[%clk 0:01:05]} 30. Kh3 {[%clk 0:01:07]}  Ne3 {[%clk 0:01:04]} 31. Nh2 {[%clk 0:00:35]}  Qxd4 {[%clk 0:01:01]} 32. Rxf8+ {[%clk 0:00:27]}  Rxf8 {[%clk 0:01:01]} 33. Rxf8+ {[%clk 0:00:28]}  Kxf8 {[%clk 0:01:01]} 34. Qa6 {[%clk 0:00:24]}  Nxe5 {[%clk 0:00:35]} 35. Qc8+ {[%clk 0:00:20]}  Kf7 {[%clk 0:00:34]} 36. Qc7+ {[%clk 0:00:17]}  Kg8 {[%clk 0:00:34]} 37. Qc8+ {[%clk 0:00:15]}  Kh7 {[%clk 0:00:34]} 38. Qxe6 {[%clk 0:00:15]}  Qe4 {[%clk 0:00:32]} 39. g5 {[%clk 0:00:09]}  Qg2# {[%clk 0:00:31]} 0-1


[Site "https://www.chess.com"]